[Event "*** Titled Tuesday Blitz"]
[Site "Chess.com"]
[Date "2020.04.14"]
[Round "6"]
[White "SergeiAza"]
[Black "Storne89"]
[Result "1/2-1/2"]
[WhiteElo "2779"]
[BlackElo "2616"]
[TimeControl "180+1"]
[EndTime "11:06:22 PDT"]
[Termination "Game drawn by repetition"]

1. e4 {[%clk 0:03:00.9]} 1... e5 {[%clk 0:02:56]} 2. Nf3 {[%clk 0:03:00.9]} 2...
Nc6 {[%clk 0:02:55.8]} 3. Bb5 {[%clk 0:03:01]} 3... a6 {[%clk 0:02:56.3]} 4. Ba4
{[%clk 0:03:01.2]} 4... Nf6 {[%clk 0:02:56.6]} 5. O-O {[%clk 0:03:01.7]} 5...
Be7 {[%clk 0:02:57]} 6. Re1 {[%clk 0:03:01.9]} 6... b5 {[%clk 0:02:55.2]} 7. Bb3
{[%clk 0:03:02.4]} 7... O-O {[%clk 0:02:55.7]} 8. c3 {[%clk 0:02:59.7]} 8... d5
{[%clk 0:02:55.3]} 9. d4 {[%clk 0:02:59]} 9... exd4 {[%clk 0:02:48.2]} 10. e5
{[%clk 0:02:58.5]} 10... Ne4 {[%clk 0:02:47.1]} 11. cxd4 {[%clk 0:02:59]} 11...
Bg4 {[%clk 0:02:39.4]} 12. Nc3 {[%clk 0:02:59.1]} 12... Nxc3 {[%clk 0:02:38.6]}
13. bxc3 {[%clk 0:02:58.7]} 13... Qd7 {[%clk 0:02:30.6]} 14. h3 {[%clk
0:02:48.4]} 14... Bh5 {[%clk 0:02:26.8]} 15. Bc2 {[%clk 0:02:40.8]} 15... Bg6
{[%clk 0:02:00.4]} 16. Bg5 {[%clk 0:02:35.2]} 16... Nd8 {[%clk 0:01:56.9]} 17.
Be3 {[%clk 0:01:38.8]} 17... Ne6 {[%clk 0:01:53.1]} 18. Qd2 {[%clk 0:01:39.1]}
18... Rac8 {[%clk 0:01:47.4]} 19. Red1 {[%clk 0:01:33.8]} 19... c5 {[%clk
0:01:24.4]} 20. Bxg6 {[%clk 0:01:22.5]} 20... hxg6 {[%clk 0:01:24.1]} 21. dxc5
{[%clk 0:01:22.6]} 21... Bxc5 {[%clk 0:01:23.6]} 22. Bd4 {[%clk 0:01:22.1]}
22... Bxd4 {[%clk 0:01:15.9]} 23. Nxd4 {[%clk 0:01:15.9]} 23... Nxd4 {[%clk
0:01:14.4]} 24. cxd4 {[%clk 0:01:13.8]} 24... Rc4 {[%clk 0:01:14.2]} 25. Qe3
{[%clk 0:01:04.4]} 25... Rfc8 {[%clk 0:01:10.7]} 26. Rd2 {[%clk 0:01:01.7]}
26... Rc3 {[%clk 0:01:06.8]} 27. Qe2 {[%clk 0:00:59.8]} 27... R8c4 {[%clk
0:00:56]} 28. Re1 {[%clk 0:00:58.5]} 28... Rc6 {[%clk 0:00:53.2]} 29. Kh2 {[%clk
0:00:56.3]} 29... Qf5 {[%clk 0:00:52.8]} 30. g3 {[%clk 0:00:51.2]} 30... b4
{[%clk 0:00:48.1]} 31. Kg2 {[%clk 0:00:50.1]} 31... a5 {[%clk 0:00:47.8]} 32.
Qg4 {[%clk 0:00:45.5]} 32... Qxg4 {[%clk 0:00:46.8]} 33. hxg4 {[%clk 0:00:45.4]}
33... Rc2 {[%clk 0:00:47.2]} 34. Ree2 {[%clk 0:00:43.2]} 34... Rxd2 {[%clk
0:00:46.7]} 35. Rxd2 {[%clk 0:00:43.5]} 35... g5 {[%clk 0:00:43.7]} 36. f4
{[%clk 0:00:43.1]} 36... gxf4 {[%clk 0:00:41.1]} 37. gxf4 {[%clk 0:00:44]} 37...
Rc3 {[%clk 0:00:41.4]} 38. f5 {[%clk 0:00:42.3]} 38... Kf8 {[%clk 0:00:41.8]}
39. Kf2 {[%clk 0:00:36.8]} 39... Ke7 {[%clk 0:00:42.1]} 40. g5 {[%clk
0:00:32.2]} 40... g6 {[%clk 0:00:41.7]} 41. fxg6 {[%clk 0:00:25.5]} 41... fxg6
{[%clk 0:00:41.9]} 42. Ke2 {[%clk 0:00:26]} 42... Ke6 {[%clk 0:00:41.9]} 43. Rd3
{[%clk 0:00:26.4]} 43... Rc2+ {[%clk 0:00:40.6]} 44. Rd2 {[%clk 0:00:26.5]}
44... Rc3 {[%clk 0:00:39.7]} 45. Rd3 {[%clk 0:00:24.7]} 45... Rc4 {[%clk
0:00:38.6]} 46. Ke3 {[%clk 0:00:18]} 46... Kf5 {[%clk 0:00:38.6]} 47. Rd1 {[%clk
0:00:17.4]} 47... Kxg5 {[%clk 0:00:38.2]} 48. Rf1 {[%clk 0:00:17.3]} 48... Rc6
{[%clk 0:00:35.1]} 49. Rf8 {[%clk 0:00:14.8]} 49... a4 {[%clk 0:00:33.6]} 50.
Rb8 {[%clk 0:00:13.8]} 50... Rc3+ {[%clk 0:00:20.5]} 51. Ke2 {[%clk 0:00:12]}
51... Rc4 {[%clk 0:00:20.7]} 52. Kd3 {[%clk 0:00:10.3]} 52... Kf5 {[%clk
0:00:20.2]} 53. Rb5 {[%clk 0:00:09.5]} 53... Ke6 {[%clk 0:00:20]} 54. Rb6+
{[%clk 0:00:09.3]} 54... Ke7 {[%clk 0:00:20.5]} 55. Rb5 {[%clk 0:00:06.1]} 55...
Rc3+ {[%clk 0:00:19]} 56. Kd2 {[%clk 0:00:05.5]} 56... Rc4 {[%clk 0:00:19.3]}
57. Kd3 {[%clk 0:00:05.3]} 57... Ke6 {[%clk 0:00:18.8]} 58. Rb6+ {[%clk
0:00:05.3]} 58... Kf5 {[%clk 0:00:18.6]} 59. Rf6+ {[%clk 0:00:04.5]} 59... Kg5
{[%clk 0:00:18.7]} 60. Rb6 {[%clk 0:00:05.1]} 60... Kf4 {[%clk 0:00:17.1]} 61.
Rb5 {[%clk 0:00:04.7]} 61... Rc3+ {[%clk 0:00:16.5]} 62. Kd2 {[%clk 0:00:05.1]}
62... Rc4 {[%clk 0:00:16.1]} 63. Kd3 {[%clk 0:00:05.6]} 63... Kf5 {[%clk
0:00:16.6]} 64. Rb6 {[%clk 0:00:04.6]} 64... g5 {[%clk 0:00:16.5]} 65. Rf6+
{[%clk 0:00:03.9]} 65... Kg4 {[%clk 0:00:17]} 66. e6 {[%clk 0:00:04.3]} 66...
Rc7 {[%clk 0:00:15]} 67. Rf7 {[%clk 0:00:04]} 67... Rc6 {[%clk 0:00:15.5]} 68.
e7 {[%clk 0:00:02.5]} 68... Re6 {[%clk 0:00:15.5]} 69. Rg7 {[%clk 0:00:02.8]}
69... b3 {[%clk 0:00:14.1]} 70. axb3 {[%clk 0:00:02.5]} 70... a3 {[%clk
0:00:15]} 71. Kc3 {[%clk 0:00:03.4]} 71... Re2 {[%clk 0:00:13.2]} 72. Rg8 {[%clk
0:00:01.8]} 72... Rxe7 {[%clk 0:00:12.8]} 73. Ra8 {[%clk 0:00:02.2]} 73... Kf3
{[%clk 0:00:12.1]} 74. Rxa3 {[%clk 0:00:02]} 74... g4 {[%clk 0:00:13]} 75. Kb4
{[%clk 0:00:02.4]} 75... Rc7 {[%clk 0:00:12.6]} 76. Ra8 {[%clk 0:00:01.1]} 76...
g3 {[%clk 0:00:11.2]} 77. Rf8+ {[%clk 0:00:01.8]} 77... Ke4 {[%clk 0:00:11.4]}
78. Rg8 {[%clk 0:00:02.3]} 78... Kf3 {[%clk 0:00:11.8]} 79. Rf8+ {[%clk
0:00:02.4]} 79... Ke2 {[%clk 0:00:11.7]} 80. Re8+ {[%clk 0:00:02.5]} 80... Kf2
{[%clk 0:00:12]} 81. Rf8+ {[%clk 0:00:02.7]} 81... Kg1 {[%clk 0:00:11.3]} 82.
Rf5 {[%clk 0:00:02.1]} 82... g2 {[%clk 0:00:11.4]} 83. Rxd5 {[%clk 0:00:02]}
83... Kf2 {[%clk 0:00:12]} 84. Rf5+ {[%clk 0:00:02.1]} 84... Kg3 {[%clk
0:00:11.5]} 85. Rg5+ {[%clk 0:00:02.5]} 85... Kf2 {[%clk 0:00:12]} 86. Rf5+
{[%clk 0:00:02.5]} 86... Kg3 {[%clk 0:00:10.9]} 87. Rg5+ {[%clk 0:00:03]} 87...
Kf3 {[%clk 0:00:11.8]} 88. d5 {[%clk 0:00:02.4]} 88... Rc1 {[%clk 0:00:10.3]}
89. d6 {[%clk 0:00:02.1]} 89... g1=Q {[%clk 0:00:09.5]} 90. Rxg1 {[%clk
0:00:02.6]} 90... Rxg1 {[%clk 0:00:10.4]} 91. Kc5 {[%clk 0:00:03.1]} 91... Ke4
{[%clk 0:00:10.8]} 92. d7 {[%clk 0:00:03.5]} 92... Rd1 {[%clk 0:00:09.8]} 93.
Kc6 {[%clk 0:00:03.9]} 93... Ke5 {[%clk 0:00:10.7]} 94. Kc7 {[%clk 0:00:04.2]}
94... Rc1+ {[%clk 0:00:11.2]} 95. Kb7 {[%clk 0:00:04.5]} 95... Rd1 {[%clk
0:00:11.4]} 96. Kc7 {[%clk 0:00:04.8]} 96... Rc1+ {[%clk 0:00:11.8]} 97. Kb7
{[%clk 0:00:05]} 97... Rd1 {[%clk 0:00:12.1]} 98. Kc7 {[%clk 0:00:05.3]} 1/2-1/2

[Event "*** Titled Tuesday Blitz"]
[Site "Chess.com"]
[Date "2020.04.14"]
[Round "6"]
[White "BronceYSueno"]
[Black "cukus"]
[Result "0-1"]
[WhiteElo "2474"]
[BlackElo "2435"]
[TimeControl "180+1"]
[EndTime "11:06:39 PDT"]
[Termination "cukus won by resignation"]

1. Nf3 {[%clk 0:03:00.9]} 1... c5 {[%clk 0:02:58]} 2. g3 {[%clk 0:02:58.8]} 2...
g6 {[%clk 0:02:51.9]} 3. Bg2 {[%clk 0:02:58.8]} 3... Bg7 {[%clk 0:02:52.3]} 4.
O-O {[%clk 0:02:58.3]} 4... Nc6 {[%clk 0:02:52.4]} 5. c3 {[%clk 0:02:52.8]} 5...
d5 {[%clk 0:02:40.7]} 6. d4 {[%clk 0:02:46]} 6... Nf6 {[%clk 0:02:40.5]} 7. dxc5
{[%clk 0:02:44.5]} 7... O-O {[%clk 0:02:38.8]} 8. b4 {[%clk 0:02:43.7]} 8... a6
{[%clk 0:02:19.5]} 9. Bb2 {[%clk 0:02:42.3]} 9... e5 {[%clk 0:02:19.1]} 10. Nbd2
{[%clk 0:02:40.6]} 10... h6 {[%clk 0:02:10.2]} 11. Rc1 {[%clk 0:02:29.6]} 11...
Be6 {[%clk 0:02:09]} 12. a4 {[%clk 0:02:28.2]} 12... Nd7 {[%clk 0:02:01.5]} 13.
e3 {[%clk 0:02:19.8]} 13... a5 {[%clk 0:01:53.7]} 14. b5 {[%clk 0:02:12.2]}
14... Ne7 {[%clk 0:01:53.6]} 15. c4 {[%clk 0:01:59.7]} 15... e4 {[%clk
0:01:17.2]} 16. Nd4 {[%clk 0:01:34.7]} 16... Nxc5 {[%clk 0:01:13]} 17. Nxe6
{[%clk 0:01:33.4]} 17... fxe6 {[%clk 0:00:58]} 18. Bxg7 {[%clk 0:01:31.5]} 18...
Kxg7 {[%clk 0:00:58]} 19. cxd5 {[%clk 0:01:29]} 19... Nd3 {[%clk 0:00:51.2]} 20.
dxe6 {[%clk 0:01:19.4]} 20... Nxc1 {[%clk 0:00:48.5]} 21. Qxc1 {[%clk
0:01:20.3]} 21... Qd5 {[%clk 0:00:36.6]} 22. Qc3+ {[%clk 0:01:00.6]} 22... Kg8
{[%clk 0:00:35.9]} 23. Nxe4 {[%clk 0:00:59.3]} 23... Qxe6 {[%clk 0:00:35.5]} 24.
Rd1 {[%clk 0:00:51.9]} 24... Rfd8 {[%clk 0:00:30.2]} 25. Rxd8+ {[%clk 0:00:40]}
25... Rxd8 {[%clk 0:00:31.1]} 26. h4 {[%clk 0:00:38.5]} 26... b6 {[%clk
0:00:27.3]} 27. Bf3 {[%clk 0:00:31.4]} 27... Nd5 {[%clk 0:00:24.5]} 28. Qd4
{[%clk 0:00:27.8]} 28... Rf8 {[%clk 0:00:22.4]} 29. Nd2 {[%clk 0:00:24.6]} 29...
Nb4 {[%clk 0:00:20.7]} 30. Kg2 {[%clk 0:00:23.4]} 30... Qf6 {[%clk 0:00:20.8]}
31. Qc4+ {[%clk 0:00:22.5]} 31... Qf7 {[%clk 0:00:18.9]} 32. Qd4 {[%clk
0:00:19.8]} 32... Qf6 {[%clk 0:00:19]} 33. Qc4+ {[%clk 0:00:19.8]} 33... Qf7
{[%clk 0:00:19.3]} 34. Qg4 {[%clk 0:00:19.3]} 34... h5 {[%clk 0:00:17.6]} 35.
Qd4 {[%clk 0:00:18.6]} 35... Qf6 {[%clk 0:00:17.6]} 36. Qc4+ {[%clk 0:00:18.6]}
36... Qf7 {[%clk 0:00:18.1]} 37. Qe4 {[%clk 0:00:16.8]} 37... Rd8 {[%clk
0:00:16.7]} 38. Nc4 {[%clk 0:00:16.6]} 38... Qf6 {[%clk 0:00:14.3]} 39. Ne5
{[%clk 0:00:16]} 39... Re8 {[%clk 0:00:13.5]} 40. Qc4+ {[%clk 0:00:15.8]} 40...
Qe6 {[%clk 0:00:12.6]} 41. Qxe6+ {[%clk 0:00:12]} 41... Rxe6 {[%clk 0:00:13.5]}
42. Nc6 {[%clk 0:00:12.1]} 42... Kg7 {[%clk 0:00:10.6]} 43. Nd4 {[%clk
0:00:11.4]} 43... Rd6 {[%clk 0:00:09.7]} 44. Bb7 {[%clk 0:00:11]} 44... Nd5
{[%clk 0:00:08.2]} 45. Bc6 {[%clk 0:00:10.2]} 45... Nc3 {[%clk 0:00:07.9]} 46.
Bf3 {[%clk 0:00:09.9]} 46... Nxa4 {[%clk 0:00:08.1]} 47. Ne2 {[%clk 0:00:09.9]}
47... Nc3 {[%clk 0:00:07.9]} 48. Nxc3 {[%clk 0:00:08.8]} 48... Rd3 {[%clk
0:00:08]} 49. Nd5 {[%clk 0:00:08.2]} 49... a4 {[%clk 0:00:07.5]} 50. Nxb6 {[%clk
0:00:09.1]} 50... a3 {[%clk 0:00:07.7]} 51. Bd5 {[%clk 0:00:08.1]} 51... Rxd5
{[%clk 0:00:06.7]} 52. Nxd5 {[%clk 0:00:09]} 52... a2 {[%clk 0:00:07.2]} 53. Nf4
{[%clk 0:00:09.7]} 53... a1=Q {[%clk 0:00:06.9]} 54. b6 {[%clk 0:00:10.4]} 54...
Qb2 {[%clk 0:00:07]} 55. Nd5 {[%clk 0:00:08.7]} 55... Qb5 {[%clk 0:00:07]} 56.
e4 {[%clk 0:00:08.7]} 56... Kf7 {[%clk 0:00:04.2]} 57. Kf3 {[%clk 0:00:08.9]}
57... Qc6 {[%clk 0:00:04.5]} 58. Kf4 {[%clk 0:00:08.8]} 58... Qb7 {[%clk
0:00:04.5]} 59. f3 {[%clk 0:00:09.2]} 59... Ke6 {[%clk 0:00:04.3]} 60. Ke3
{[%clk 0:00:09.3]} 60... Qc6 {[%clk 0:00:04.1]} 61. Kf4 {[%clk 0:00:09.2]} 61...
Qc1+ {[%clk 0:00:03.7]} 62. Ne3 {[%clk 0:00:08.2]} 62... Kd6 {[%clk 0:00:03.4]}
63. g4 {[%clk 0:00:07.9]} 63... hxg4 {[%clk 0:00:03.7]} 64. fxg4 {[%clk
0:00:08.8]} 64... Kc6 {[%clk 0:00:03.7]} 65. Kf3 {[%clk 0:00:08.8]} 65... Kxb6
{[%clk 0:00:03]} 66. Ng2 {[%clk 0:00:08.5]} 66... Qc3+ {[%clk 0:00:02.7]} 67.
Kf4 {[%clk 0:00:08.5]} 67... Qf6+ {[%clk 0:00:02.8]} 68. Ke3 {[%clk 0:00:06.7]}
68... Kc6 {[%clk 0:00:03.1]} 69. g5 {[%clk 0:00:06.2]} 69... Qc3+ {[%clk
0:00:02.3]} 70. Kf4 {[%clk 0:00:06.4]} 70... Qd2+ {[%clk 0:00:02.4]} 71. Ne3
{[%clk 0:00:06.5]} 71... Kd6 {[%clk 0:00:02]} 72. Kf3 {[%clk 0:00:07]} 72... Ke6
{[%clk 0:00:01.6]} 73. Ng4 {[%clk 0:00:06.4]} 73... Qd3+ {[%clk 0:00:01.7]} 74.
Kf4 {[%clk 0:00:06.1]} 74... Qa3 {[%clk 0:00:02.6]} 75. Ne3 {[%clk 0:00:06.4]}
75... Kf7 {[%clk 0:00:03.1]} 76. Ng4 {[%clk 0:00:06.1]} 76... Kg7 {[%clk
0:00:03]} 77. Ne5 {[%clk 0:00:06.3]} 77... Qc1+ {[%clk 0:00:03.2]} 78. Kf3
{[%clk 0:00:06.3]} 78... Qc3+ {[%clk 0:00:03.1]} 79. Kf4 {[%clk 0:00:06.6]}
79... Qd2+ {[%clk 0:00:02.4]} 80. Kf3 {[%clk 0:00:05.4]} 80... Qe1 {[%clk
0:00:02.5]} 81. Ng4 {[%clk 0:00:05.2]} 81... Qxh4 {[%clk 0:00:02.3]} 82. Kf4
{[%clk 0:00:05.3]} 82... Qe1 {[%clk 0:00:02.1]} 83. Kf3 {[%clk 0:00:05.5]} 83...
Qf1+ {[%clk 0:00:02.4]} 84. Kg3 {[%clk 0:00:05.5]} 84... Qa6 {[%clk 0:00:02.8]}
85. Kf4 {[%clk 0:00:06.4]} 85... Qc8 {[%clk 0:00:03.1]} 86. Nf6 {[%clk
0:00:06.2]} 86... Qf8 {[%clk 0:00:03.1]} 87. Kg4 {[%clk 0:00:06.2]} 87... Qa3
{[%clk 0:00:03.7]} 88. Kf4 {[%clk 0:00:06.6]} 88... Qc1+ {[%clk 0:00:03.8]} 89.
Kg4 {[%clk 0:00:06]} 89... Qg1+ {[%clk 0:00:04.4]} 90. Kf4 {[%clk 0:00:06.5]}
90... Qf2+ {[%clk 0:00:04.5]} 91. Kg4 {[%clk 0:00:07.4]} 91... Qe2+ {[%clk
0:00:04.7]} 92. Kf4 {[%clk 0:00:08.3]} 92... Kf7 {[%clk 0:00:04.9]} 93. Ng4
{[%clk 0:00:08.2]} 93... Qf1+ {[%clk 0:00:04.8]} 94. Kg3 {[%clk 0:00:08.1]}
94... Ke6 {[%clk 0:00:05.3]} 95. Ne3 {[%clk 0:00:08]} 95... Qe1+ {[%clk
0:00:05.3]} 96. Kf4 {[%clk 0:00:08.9]} 96... Qd2 {[%clk 0:00:05.4]} 97. Kf3
{[%clk 0:00:09]} 97... Qd3 {[%clk 0:00:05.8]} 98. Kf4 {[%clk 0:00:09.2]} 98...
Qb3 {[%clk 0:00:05.8]} 99. Kf3 {[%clk 0:00:09.5]} 99... Ke5 {[%clk 0:00:06.1]}
100. Ke2 {[%clk 0:00:08.3]} 100... Kxe4 {[%clk 0:00:06]} 101. Nf1 {[%clk
0:00:09.2]} 101... Qc2+ {[%clk 0:00:06]} 102. Nd2+ {[%clk 0:00:09]} 102... Qxd2+
{[%clk 0:00:04.9]} 103. Kxd2 {[%clk 0:00:09.1]} 103... Kf5 {[%clk 0:00:05.5]}
104. Ke3 {[%clk 0:00:10]} 104... Kxg5 {[%clk 0:00:06.1]} 105. Kf3 {[%clk
0:00:10.9]} 105... Kh4 {[%clk 0:00:06.3]} 106. Kf2 {[%clk 0:00:11.4]} 106... g5
{[%clk 0:00:05.5]} 107. Kg2 {[%clk 0:00:12.3]} 107... Kg4 {[%clk 0:00:05.6]}
108. Kg1 {[%clk 0:00:12.1]} 108... Kg3 {[%clk 0:00:05.5]} 109. Kh1 {[%clk
0:00:12.3]} 109... g4 {[%clk 0:00:05.8]} 110. Kg1 {[%clk 0:00:13.2]} 110... Kh3
{[%clk 0:00:06.1]} 111. Kf2 {[%clk 0:00:13.3]} 111... Kh2 {[%clk 0:00:05.2]} 0-1

[Event "*** Titled Tuesday Blitz"]
[Site "Chess.com"]
[Date "2020.04.14"]
[Round "7"]
[White "Azerichess"]
[Black "Bigfish1995"]
[Result "1/2-1/2"]
[WhiteElo "3019"]
[BlackElo "3105"]
[TimeControl "180+1"]
[EndTime "11:08:07 PDT"]
[Termination "Game drawn by agreement"]

1. d4 {[%clk 0:03:00.9]} 1... Nf6 {[%clk 0:02:59]} 2. c4 {[%clk 0:03:00.9]} 2...
e6 {[%clk 0:02:59.4]} 3. Nf3 {[%clk 0:03:01.1]} 3... d5 {[%clk 0:02:59.5]} 4.
Nc3 {[%clk 0:03:01.1]} 4... Nbd7 {[%clk 0:02:58.6]} 5. Bf4 {[%clk 0:02:56.9]}
5... dxc4 {[%clk 0:02:50.2]} 6. e3 {[%clk 0:02:56.9]} 6... Nd5 {[%clk
0:02:50.1]} 7. Bxc4 {[%clk 0:02:55.2]} 7... Nxf4 {[%clk 0:02:49.2]} 8. exf4
{[%clk 0:02:55.3]} 8... Nb6 {[%clk 0:02:48.8]} 9. Bb3 {[%clk 0:02:52.2]} 9...
Be7 {[%clk 0:02:39]} 10. O-O {[%clk 0:02:49.4]} 10... O-O {[%clk 0:02:38.9]}
1/2-1/2

[Event "*** Titled Tuesday Blitz"]
[Site "Chess.com"]
[Date "2020.04.14"]
[Round "7"]
[White "BahadirOzen"]
[Black "Jagerrmeisterr"]
[Result "1/2-1/2"]
[WhiteElo "2828"]
[BlackElo "2692"]
[TimeControl "180+1"]
[EndTime "11:08:55 PDT"]
[Termination "Game drawn by repetition"]

1. Nf3 {[%clk 0:03:00.9]} 1... Nf6 {[%clk 0:02:58.3]} 2. c4 {[%clk 0:03:01]}
2... e6 {[%clk 0:02:58.1]} 3. e3 {[%clk 0:03:00.8]} 3... b6 {[%clk 0:02:58.2]}
4. b3 {[%clk 0:03:00.6]} 4... Bb7 {[%clk 0:02:58.6]} 5. Bb2 {[%clk 0:03:01.1]}
5... g6 {[%clk 0:02:59.1]} 6. Be2 {[%clk 0:02:59.6]} 6... Bg7 {[%clk 0:02:59.5]}
7. O-O {[%clk 0:03:00.2]} 7... d6 {[%clk 0:02:59.9]} 8. d4 {[%clk 0:03:00.3]}
8... Nbd7 {[%clk 0:03:00.3]} 9. Nc3 {[%clk 0:03:00.2]} 9... O-O {[%clk 0:03:00]}
10. Qc2 {[%clk 0:02:59.7]} 10... a5 {[%clk 0:02:59.8]} 11. Rfd1 {[%clk
0:02:57.2]} 11... Qe7 {[%clk 0:02:58.1]} 12. a3 {[%clk 0:02:46.8]} 12... e5
{[%clk 0:02:55.5]} 13. b4 {[%clk 0:02:41.9]} 13... Rfe8 {[%clk 0:02:44.3]} 14.
Nb5 {[%clk 0:02:37.9]} 14... Be4 {[%clk 0:02:33.1]} 15. Qc1 {[%clk 0:02:36.9]}
15... Rac8 {[%clk 0:02:32.5]} 16. Na7 {[%clk 0:02:35.2]} 16... Ra8 {[%clk
0:02:32.1]} 17. Nb5 {[%clk 0:02:35.8]} 17... Rac8 {[%clk 0:02:32.4]} 18. Na7
{[%clk 0:02:24.2]} 18... Ra8 {[%clk 0:02:27.1]} 19. Nb5 {[%clk 0:02:24.2]}
1/2-1/2

[Event "*** Titled Tuesday Blitz"]
[Site "Chess.com"]
[Date "2020.04.14"]
[Round "7"]
[White "Mikhail_Biryukov"]
[Black "Lucas_Tomiello"]
[Result "1-0"]
[WhiteElo "2593"]
[BlackElo "2365"]
[TimeControl "180+1"]
[EndTime "11:09:15 PDT"]
[Termination "Mikhail_Biryukov won by resignation"]

1. e4 {[%clk 0:03:00.9]} 1... c5 {[%clk 0:03:00.4]} 2. Nf3 {[%clk 0:03:00.1]}
2... d6 {[%clk 0:03:01]} 3. Bb5+ {[%clk 0:03:00]} 3... Nd7 {[%clk 0:03:01]} 4.
d4 {[%clk 0:02:57.2]} 4... cxd4 {[%clk 0:03:01.9]} 5. Qxd4 {[%clk 0:02:57.8]}
5... a6 {[%clk 0:03:02.5]} 6. Bxd7+ {[%clk 0:02:57.7]} 6... Bxd7 {[%clk
0:03:03.4]} 7. c4 {[%clk 0:02:57.1]} 7... e5 {[%clk 0:03:03.8]} 8. Qd3 {[%clk
0:02:56.8]} 8... b5 {[%clk 0:03:03.6]} 9. Nc3 {[%clk 0:02:55.3]} 9... Qb6 {[%clk
0:03:00.5]} 10. cxb5 {[%clk 0:02:53.9]} 10... axb5 {[%clk 0:02:59.4]} 11. O-O
{[%clk 0:02:52.9]} 11... Be7 {[%clk 0:02:42.5]} 12. Nd5 {[%clk 0:02:48]} 12...
Qb8 {[%clk 0:02:41.7]} 13. Be3 {[%clk 0:02:41.8]} 13... Bd8 {[%clk 0:02:37.4]}
14. Rfd1 {[%clk 0:02:36.6]} 14... Nh6 {[%clk 0:02:32.2]} 15. Bxh6 {[%clk
0:02:31.3]} 15... gxh6 {[%clk 0:02:33.1]} 16. Qe3 {[%clk 0:02:30.8]} 16... O-O
{[%clk 0:02:16.5]} 17. Qxh6 {[%clk 0:02:30]} 17... Be6 {[%clk 0:02:14.5]} 18.
Ng5 {[%clk 0:02:28.2]} 18... Bxg5 {[%clk 0:02:12.4]} 19. Qxg5+ {[%clk
0:02:28.2]} 1-0

[Event "*** Titled Tuesday Blitz"]
[Site "Chess.com"]
[Date "2020.04.14"]
[Round "7"]
[White "JLRHei"]
[Black "Atanejhad"]
[Result "0-1"]
[WhiteElo "2373"]
[BlackElo "2547"]
[TimeControl "180+1"]
[EndTime "11:09:28 PDT"]
[Termination "Atanejhad won by resignation"]

1. d4 {[%clk 0:03:00.9]} 1... Nf6 {[%clk 0:02:59.8]} 2. c4 {[%clk 0:03:01.1]}
2... e6 {[%clk 0:03:00.1]} 3. Nf3 {[%clk 0:03:01.3]} 3... b6 {[%clk 0:03:00.3]}
4. g3 {[%clk 0:03:01.9]} 4... Ba6 {[%clk 0:03:00.8]} 5. b3 {[%clk 0:02:58.8]}
5... b5 {[%clk 0:03:01]} 6. Nbd2 {[%clk 0:02:50.7]} 6... Bb4 {[%clk 0:02:59.1]}
7. Bg2 {[%clk 0:02:42.3]} 7... bxc4 {[%clk 0:02:58.5]} 8. Ne5 {[%clk 0:02:39.1]}
8... c6 {[%clk 0:02:40.5]} 9. Nxc4 {[%clk 0:02:34.1]} 9... d5 {[%clk 0:02:38.6]}
10. Ne5 {[%clk 0:02:30.9]} 10... Bc3 {[%clk 0:02:38.9]} 11. Rb1 {[%clk
0:02:08.9]} 11... Bxd4 {[%clk 0:02:38.8]} 12. Nef3 {[%clk 0:02:09]} 12... Bxf2+
{[%clk 0:02:26.9]} 13. Kxf2 {[%clk 0:02:08.1]} 13... Ng4+ {[%clk 0:02:27.1]} 14.
Ke1 {[%clk 0:01:49.1]} 14... Ne3 {[%clk 0:02:26.3]} 0-1

[Event "*** Titled Tuesday Blitz"]
[Site "Chess.com"]
[Date "2020.04.14"]
[Round "7"]
[White "IwkooO"]
[Black "Gaguna"]
[Result "0-1"]
[WhiteElo "2543"]
[BlackElo "2691"]
[TimeControl "180+1"]
[EndTime "11:09:57 PDT"]
[Termination "Gaguna won by resignation"]

1. e4 {[%clk 0:03:00.6]} 1... d6 {[%clk 0:02:59.8]} 2. d4 {[%clk 0:03:00.9]}
2... Nf6 {[%clk 0:03:00.2]} 3. Nc3 {[%clk 0:03:01.5]} 3... e5 {[%clk 0:03:00.7]}
4. Nf3 {[%clk 0:03:01.7]} 4... Nbd7 {[%clk 0:03:00.1]} 5. Bc4 {[%clk 0:03:01.6]}
5... Be7 {[%clk 0:03:00.6]} 6. O-O {[%clk 0:03:00.7]} 6... O-O {[%clk 0:03:01]}
7. a4 {[%clk 0:03:00.6]} 7... c6 {[%clk 0:03:00.2]} 8. Qe2 {[%clk 0:02:59.9]}
8... Qc7 {[%clk 0:03:00.5]} 9. Rd1 {[%clk 0:02:59]} 9... h6 {[%clk 0:03:00.1]}
10. h3 {[%clk 0:02:51]} 10... Re8 {[%clk 0:02:59.8]} 11. a5 {[%clk 0:02:45]}
11... Bf8 {[%clk 0:02:58.8]} 12. d5 {[%clk 0:02:42.4]} 12... b5 {[%clk
0:02:48.3]} 13. Ba2 {[%clk 0:02:29.7]} 13... b4 {[%clk 0:02:46]} 14. dxc6 {[%clk
0:02:22.1]} 14... bxc3 {[%clk 0:02:43.5]} 15. cxd7 {[%clk 0:02:21.8]} 15... Bxd7
{[%clk 0:02:39.2]} 16. bxc3 {[%clk 0:02:10.7]} 16... Qxc3 {[%clk 0:02:38.2]} 17.
Ba3 {[%clk 0:01:57]} 17... Be6 {[%clk 0:02:26.9]} 18. Bxd6 {[%clk 0:01:47.1]}
18... Bxd6 {[%clk 0:02:24]} 19. Bxe6 {[%clk 0:01:42.6]} 19... Rxe6 {[%clk
0:02:21.5]} 0-1

[Event "*** Titled Tuesday Blitz"]
[Site "Chess.com"]
[Date "2020.04.14"]
[Round "7"]
[White "terrapin33"]
[Black "talaicito"]
[Result "0-1"]
[WhiteElo "2125"]
[BlackElo "2291"]
[TimeControl "180+1"]
[EndTime "11:10:32 PDT"]
[Termination "talaicito won by resignation"]

1. d4 {[%clk 0:03:00.9]} 1... e6 {[%clk 0:03:00.6]} 2. e4 {[%clk 0:02:46.4]}
2... d5 {[%clk 0:02:59.3]} 3. Nd2 {[%clk 0:02:46.2]} 3... Nf6 {[%clk 0:02:58.4]}
4. e5 {[%clk 0:02:46]} 4... Nfd7 {[%clk 0:02:59]} 5. Bd3 {[%clk 0:02:46.4]} 5...
c5 {[%clk 0:02:59.9]} 6. c3 {[%clk 0:02:46.5]} 6... Nc6 {[%clk 0:03:00.5]} 7.
Ne2 {[%clk 0:02:45.7]} 7... cxd4 {[%clk 0:02:59.9]} 8. cxd4 {[%clk 0:02:44.6]}
8... f6 {[%clk 0:03:00.8]} 9. exf6 {[%clk 0:02:37.6]} 9... Nxf6 {[%clk
0:03:00.8]} 10. Nf3 {[%clk 0:02:37]} 10... Bd6 {[%clk 0:02:56.9]} 11. O-O {[%clk
0:02:35.5]} 11... Qc7 {[%clk 0:02:56.8]} 12. Bg5 {[%clk 0:02:31.8]} 12... O-O
{[%clk 0:02:57.2]} 13. Rc1 {[%clk 0:02:31.4]} 13... h6 {[%clk 0:02:46.9]} 14.
Bh4 {[%clk 0:02:30.9]} 14... Nh5 {[%clk 0:02:45.4]} 15. Bg3 {[%clk 0:02:12.4]}
15... Nxg3 {[%clk 0:02:43.6]} 16. hxg3 {[%clk 0:02:11]} 16... g5 {[%clk
0:02:43.6]} 17. Bb1 {[%clk 0:02:03.8]} 17... Qg7 {[%clk 0:02:41.2]} 18. a3
{[%clk 0:01:53.3]} 18... Bd7 {[%clk 0:02:40.3]} 19. b4 {[%clk 0:01:52.4]} 19...
a6 {[%clk 0:02:40.1]} 20. g4 {[%clk 0:01:33.9]} 20... Be8 {[%clk 0:02:39.6]} 21.
Ng3 {[%clk 0:01:32.6]} 21... Bg6 {[%clk 0:02:37.4]} 22. Nh5 {[%clk 0:01:27.7]}
22... Qf7 {[%clk 0:02:35.3]} 23. Ba2 {[%clk 0:01:22.3]} 23... Bxh5 {[%clk
0:02:28]} 24. gxh5 {[%clk 0:01:21.9]} 24... Qxh5 {[%clk 0:02:28.6]} 25. Rc3
{[%clk 0:01:05.8]} 25... Rxf3 {[%clk 0:02:23.7]} 0-1